fUST/lending_fUST_20250628
["ID","MTS","AMOUNT","RATE_DAILY","PERIOD"]
[368173854,1751049053615,-151.0,0.000205,2]
[368173855,1751049053624,-370.639966,0.000205,2]
[368173856,1751049053634,-576.205166,0.000205,2]
[368173857,1751049053643,-576.205166,0.000205,2]
[368173858,1751049053652,-12562.41216491,0.000205,3]
[368173859,1751049053662,-847.04181546,0.000205,3]
[368173860,1751049053672,-151.0,0.000205,2]
[368173861,1751049053682,-498.673964,0.000205,2]
[368173862,1751049053692,-498.673964,0.000205,2]
[368173863,1751049053703,-151.0,0.000205,2]
[368173864,1751049053712,-251.347677,0.000205,2]
[368173865,1751049053723,-251.347677,0.000205,2]
[368173866,1751049053733,-556.515646,0.000205,2]
[368173867,1751049053743,-556.515646,0.000205,2]
[368173868,1751049053754,-482.359798,0.000205,2]
[368173869,1751049053764,-482.359798,0.000205,2]
[368173870,1751049053773,-151.0,0.000205,2]
[368173871,1751049053783,-151.0,0.000205,2]
[368173872,1751049053793,-151.0,0.000205,2]
[368173873,1751049053802,-160.0,0.000205,3]
[368173874,1751049053811,-151.0,0.000205,2]
[368173875,1751049053820,-833.403518,0.000205,2]
[368173876,1751049053829,-151.0,0.0002051,2]
[368173877,1751049053839,-207.4,0.0002051,2]
[368173878,1751049053848,-500.0,0.0002051,2]
[368173879,1751049053858,-500.0,0.0002051,2]
[368173880,1751049053867,-5000.0,0.0002051,2]
[368173881,1751049053877,-500.0,0.0002051,2]
[368173882,1751049053886,-500.0,0.0002051,2]
[368173883,1751049053895,-500.0,0.0002051,2]
[368173884,1751049053905,-666.0,0.0002051,2]
[368173885,1751049053914,-500.0,0.0002051,2]
[368173886,1751049053924,-500.0,0.0002051,2]
[368173887,1751049053933,-500.0,0.0002051,2]
[368173888,1751049053942,-500.0,0.0002051,2]
[368173889,1751049053951,-500.0,0.0002051,2]
[368173890,1751049053961,-500.0,0.0002051,2]
[368173891,1751049053971,-500.0,0.0002051,2]
[368173892,1751049053981,-500.0,0.0002051,2]
[368173893,1751049053990,-3906.52055875,0.0002051,2]
[368173894,1751049053999,-500.0,0.0002051,2]
[368173895,1751049054008,-500.0,0.0002051,2]
[368173896,1751049054018,-182.3598853,0.0002051,2]
[368173897,1751049054027,-500.0,0.0002051,2]
[368173898,1751049054036,-563.32945425,0.0002051,2]
[368173899,1751049054046,-151.0,0.0002051,2]
[368173900,1751049054055,-151.0,0.0002051,2]
[368173901,1751049054065,-291.5243871,0.0002051,2]
[368173902,1751049054075,-160.0,0.00020521,3]
[368173903,1751049054084,-460.0,0.00020547,2]
[368173904,1751049054093,-460.0,0.00020547,2]
[368173905,1751049054103,-249.320732,0.00020547,2]
[368173906,1751049054113,-460.0,0.00020547,2]
[368173907,1751049054122,-460.0,0.00020547,2]
[368173908,1751049054131,-538.52,0.00020547,2]
[368173909,1751049054141,-151.0,0.00020547,2]
[368173910,1751049054150,-460.0,0.00020547,2]
[368173911,1751049054159,-460.0,0.00020547,2]
[368173912,1751049054168,-151.0,0.00020547,2]
[368173913,1751049054178,-151.0,0.00020547,2]
[368173914,1751049054187,-460.0,0.00020547,2]
[368173915,1751049054196,-460.0,0.00020547,2]
[368173916,1751049054206,-297.134412,0.00020547,2]
[368173917,1751049054215,-313.28654037,0.00020547,2]
[368173918,1751049054224,-336.10138922,0.00020547,2]
[368173919,1751049054233,-297.134412,0.00020547,2]
[368173920,1751049054242,-460.0,0.00020547,2]
[368173921,1751049054252,-460.0,0.00020547,2]
[368173922,1751049054261,-827.09,0.00020547,2]
[368173923,1751049054272,-460.0,0.00020547,2]
[368173924,1751049054282,-500.15,0.00020547,2]
[368173925,1751049054291,-460.0,0.00020547,2]
[368173926,1751049054301,-460.0,0.00020547,2]
[368173927,1751049054310,-800.49,0.00020547,2]
[368173928,1751049054320,-460.0,0.00020547,2]
[368173929,1751049054329,-631.32,0.00020547,2]
[368173930,1751049054339,-532.27,0.00020547,2]
[368173931,1751049054349,-460.0,0.00020547,2]
[368173932,1751049054359,-460.0,0.00020547,2]
[368173933,1751049054368,-460.0,0.00020547,2]
[368173934,1751049054379,-460.0,0.00020547,2]
[368173935,1751049054387,-460.0,0.00020547,2]
[368173936,1751049054397,-151.0,0.00020547,2]
[368173937,1751049054406,-838.64,0.00020547,2]
[368173938,1751049054415,-460.0,0.00020547,2]
[368173939,1751049054424,-460.73,0.00020547,2]
[368173940,1751049054433,-460.0,0.00020547,2]
[368173941,1751049054443,-460.0,0.00020547,2]
[368173942,1751049054452,-151.0,0.00020547,2]
[368173943,1751049054462,-151.0,0.00020547,2]
[368173944,1751049054471,-460.0,0.00020547,2]
[368173945,1751049054480,-576.205166,0.00020547,2]
[368173946,1751049054490,-4501.76,0.00020547,2]
[368173947,1751049054499,-5500.99,0.00020547,2]
[368173948,1751049054509,-911.60365098,0.00020547,2]
[368173949,1751049054523,-544.45634902,0.00020547,2]
[368173950,1751049054532,-576.205166,0.00020547,2]
[368173951,1751049054541,-477.87,0.00020547,2]
[368173952,1751049054551,-4785.04,0.00020547,2]
[368173953,1751049054560,-460.0,0.00020547,2]
[368173954,1751049054571,-490.54,0.00020547,2]
[368173955,1751049054583,-2125.12,0.00020547,2]
[368173956,1751049054593,-460.0,0.00020547,2]
[368173957,1751049054602,-460.0,0.00020547,2]
[368173958,1751049054613,-501.46,0.00020547,2]
[368173959,1751049054622,-797.49,0.00020547,2]
[368173960,1751049054632,-177.11346123,0.00020547,2]
[368173961,1751049054641,-251.347677,0.00020547,2]
[368173962,1751049054653,-251.347677,0.00020547,2]
[368173963,1751049054663,-1935.73,0.00020547,2]
[368173964,1751049054672,-460.0,0.00020547,2]
[368173965,1751049054681,-469.64,0.00020547,2]
[368173966,1751049054691,-2217.24,0.00020547,2]
[368173967,1751049054700,-460.0,0.00020547,2]
[368173968,1751049054709,-1317.79,0.00020547,2]
[368173969,1751049054719,-1624.17,0.00020547,2]
[368173970,1751049054729,-460.0,0.00020547,2]
[368173971,1751049054739,-735.41,0.00020547,2]
[368173972,1751049054749,-460.0,0.00020547,2]
[368173973,1751049054759,-1413.54,0.00020547,2]
[368173974,1751049054768,-460.0,0.00020547,2]
[368173975,1751049054778,-1163.37,0.00020547,2]
[368173976,1751049054788,-672.35,0.00020547,2]
[368173977,1751049054797,-1954.79,0.00020547,2]
[368173978,1751049054808,-621.02,0.00020547,2]
[368173979,1751049054818,-580.24,0.00020547,2]
[368173980,1751049054827,-612.49,0.00020547,2]
[368173981,1751049054837,-460.0,0.00020547,2]
[368173982,1751049054847,-460.0,0.00020547,2]
[368173983,1751049054856,-714.41,0.00020547,2]
[368173984,1751049054865,-630.53,0.00020547,2]
[368173985,1751049054875,-151.0,0.00020547,2]
[368173986,1751049054884,-460.0,0.00020547,2]
[368173987,1751049054893,-473.41,0.00020547,2]
[368173988,1751049054903,-460.0,0.00020547,2]
[368173989,1751049054912,-460.0,0.00020547,2]
[368173990,1751049054921,-797.81,0.00020547,2]
[368173991,1751049054931,-849.88,0.00020547,2]
[368173992,1751049054940,-2242.44,0.00020547,2]
[368173993,1751049054949,-460.0,0.00020547,2]
[368173994,1751049054958,-964.61,0.00020547,2]
[368173995,1751049054968,-759.03,0.00020547,2]
[368173996,1751049054977,-559.46,0.00020547,2]
[368173997,1751049054987,-800.20603019,0.00020547,2]
[368173998,1751049055000,-1374.94396981,0.00020547,2]
[368173999,1751049055009,-877.07,0.00020547,2]
[368174000,1751049055019,-3829.26,0.00020547,2]
[368174001,1751049055028,-338.16,0.00020547,2]
[368174002,1751049055037,-460.0,0.00020547,2]
[368174003,1751049055047,-6238.11,0.00020547,2]
[368174004,1751049055057,-460.0,0.00020547,2]
[368174005,1751049055067,-460.0,0.00020547,2]
[368174006,1751049055076,-460.0,0.00020547,2]
[368174007,1751049055086,-502.74,0.00020547,2]
[368174008,1751049055095,-1658.01,0.00020547,2]
[368174009,1751049055105,-151.0,0.00020547,2]
[368174010,1751049055115,-460.0,0.00020547,2]
[368174011,1751049055124,-151.0,0.00020547,2]
[368174012,1751049055134,-858.85,0.00020547,2]
[368174013,1751049055143,-534.66,0.00020547,2]
[368174014,1751049055153,-460.0,0.00020547,2]
[368174015,1751049055162,-873.1,0.00020547,2]
[368174016,1751049055172,-207.18164709,0.00020547,2]
[368174017,1751049055181,-1065.72,0.00020547,2]
[368174018,1751049055191,-460.0,0.00020547,2]
[368174019,1751049055200,-4635.38,0.00020547,2]
[368174020,1751049055210,-707.85,0.00020547,2]
[368174021,1751049055220,-347.60074147,0.00020547,2]
[368174022,1751049055232,-422.9,0.00020547,2]
[368174023,1751049055672,-460.0,0.00019178,2]
[368174024,1751049055682,-460.0,0.00019178,2]
[368174025,1751049055692,-460.0,0.00019452,2]
[368174026,1751049055701,-151.0,0.00019726,2]
[368174027,1751049055711,-460.0,0.00019726,2]
[368174028,1751049055720,-151.0,0.0002,2]
[368174029,1751049055730,-460.0,0.0002,2]
[368174030,1751049055739,-833.403518,0.00020273,2]
[368174031,1751049055749,-151.0,0.00020273,2]
[368174032,1751049055758,-460.0,0.00020273,2]
[368174033,1751049055767,-833.403518,0.000205,2]
[368174034,1751049055776,-151.0,0.000205,2]
[368174035,1751049055786,-51.61925853,0.00020547,2]
[368174036,1751049055796,-3704.5,0.00020547,2]
[368174037,1751049055806,-1201.37,0.00020547,2]
[368174038,1751049055815,-722.87,0.00020547,2]
[368174039,1751049055826,-1142.58,0.00020547,2]
[368174040,1751049055836,-499.48,0.00020547,2]
[368174041,1751049055845,-460.0,0.00020547,2]
[368174042,1751049055854,-151.0,0.00020547,2]
[368174043,1751049055864,-731.11,0.00020547,2]
[368174044,1751049055874,-3866.0,0.00020547,2]
[368174045,1751049055883,-460.0,0.00020547,2]
[368174046,1751049055893,-833.403518,0.00020547,2]
[368174047,1751049055902,-1339.53,0.00020547,2]
[368174048,1751049055911,-833.403518,0.00020547,2]
[368174049,1751049055920,-460.0,0.00020547,2]
[368174050,1751049055930,-690.642,0.00020565,2]
[368174051,1751049055938,-166.2715739,0.00020575,2]
[368174052,1751049055948,-153.0,0.00020575,2]
[368174053,1751049055957,-153.0,0.00020575,2]
[368174054,1751049055966,-1926.34,0.000206,2]
[368174055,1751049055975,-716.195754,0.0002062,2]
[368174056,1751049055984,-151.0,0.00020621,2]
[368174057,1751049055994,-294.27238,0.00020621,2]
[368174058,1751049056003,-151.0,0.00020621,2]
[368174059,1751049056012,-370.639966,0.00020621,2]
[368174060,1751049056021,-370.639966,0.00020621,2]
[368174061,1751049056031,-498.673964,0.00020621,2]
[368174062,1751049056040,-498.673964,0.00020621,2]
[368174063,1751049056050,-151.0,0.00020621,2]
[368174064,1751049056059,-482.359798,0.00020621,2]
[368174065,1751049056069,-482.359798,0.00020621,2]
[368174066,1751049056078,-381.0,0.00020641,2]
[368174067,1751049056087,-381.0,0.00020644,2]
[368174068,1751049056097,-153.0,0.00020678,2]
[368174069,1751049056106,-381.0,0.0002077,2]
[368174070,1751049056115,-346.74976442,0.00020821,2]
[368174071,1751049056124,-152.213498,0.00020821,2]
[368174072,1751049056133,-151.0,0.00020821,2]
[368174073,1751049056143,-151.0,0.00020821,2]
[368174074,1751049056152,-151.0,0.00020821,2]
[368174075,1751049056161,-460.0,0.00020821,2]
[368174076,1751049056171,-398.02839297,0.00020821,2]
[368174077,1751049056179,-151.0,0.00020821,2]
[368174078,1751049056189,-151.0,0.00020821,2]
[368174079,1751049056198,-151.0,0.00020821,2]
[368174080,1751049056207,-151.0,0.00020821,2]
[368174081,1751049056216,-460.0,0.00020821,2]
[368174082,1751049056225,-460.0,0.00020821,2]
[368174083,1751049056234,-151.0,0.00020821,2]
[368174084,1751049056243,-241.925334,0.00020821,2]
[368174085,1751049056252,-460.0,0.00020821,2]
[368174086,1751049056262,-460.0,0.00020821,2]
[368174087,1751049056271,-151.0,0.00020821,2]
[368174088,1751049056281,-460.0,0.00020821,2]
[368174089,1751049056290,-368.31934,0.00020821,2]
[368174090,1751049056299,-368.31934,0.00020821,2]
[368174091,1751049056309,-2302.532705,0.00020821,2]
[368174092,1751049056318,-460.0,0.00020821,2]
[368174093,1751049056327,-827.09,0.00020821,2]
[368174094,1751049056337,-192.55804,0.00020821,2]
[368174095,1751049056346,-151.0,0.00020821,2]
[368174096,1751049056355,-460.0,0.00020821,2]
[368174097,1751049056364,-151.0,0.00020821,2]
[368174098,1751049056373,-151.0,0.00020821,2]
[368174099,1751049056382,-153.164602,0.00020821,2]
[368174100,1751049056392,-460.0,0.00020821,2]
[368174101,1751049056401,-460.0,0.00020821,2]
[368174102,1751049056410,-800.49,0.00020821,2]
[368174103,1751049056420,-460.0,0.00020821,2]
[368174104,1751049056429,-631.32,0.00020821,2]
[368174105,1751049056438,-151.0,0.00020821,2]
[368174106,1751049056447,-151.0,0.00020821,2]
[368174107,1751049056456,-734.224282,0.00020821,2]
[368174108,1751049056465,-734.224282,0.00020821,2]
[368174109,1751049056474,-460.0,0.00020821,2]
[368174110,1751049056483,-460.0,0.00020821,2]
[368174111,1751049056492,-460.0,0.00020821,2]
[368174112,1751049056501,-460.0,0.00020821,2]
[368174113,1751049056510,-460.0,0.00020821,2]
[368174114,1751049056521,-1774.934017,0.00020821,2]
[368174115,1751049056530,-1774.934017,0.00020821,2]
[368174116,1751049056539,-838.64,0.00020821,2]
[368174117,1751049056548,-460.0,0.00020821,2]
[368174118,1751049056558,-460.73,0.00020821,2]
[368174119,1751049056568,-460.0,0.00020821,2]
[368174120,1751049056580,-460.0,0.00020821,2]
[368174121,1751049056590,-460.0,0.00020821,2]
[368174122,1751049056600,-4501.76,0.00020821,2]
[368174123,1751049056611,-5500.99,0.00020821,2]
[368174124,1751049056622,-1456.06,0.00020821,2]
[368174125,1751049056632,-477.87,0.00020821,2]
[368174126,1751049056641,-4785.04,0.00020821,2]
[368174127,1751049056652,-460.0,0.00020821,2]
[368174128,1751049056662,-2125.12,0.00020821,2]
[368174129,1751049056672,-535.66,0.00020821,2]
[368174130,1751049056681,-460.0,0.00020821,2]
[368174131,1751049056691,-501.46,0.00020821,2]
[368174132,1751049056700,-797.49,0.00020821,2]
[368174133,1751049056709,-151.0,0.00020821,2]
[368174134,1751049056718,-1935.73,0.00020821,2]
[368174135,1751049056727,-460.0,0.00020821,2]
[368174136,1751049056736,-469.64,0.00020821,2]
[368174137,1751049056745,-2217.24,0.00020821,2]
[368174138,1751049056754,-460.0,0.00020821,2]
[368174139,1751049056763,-1317.79,0.00020821,2]
[368174140,1751049056772,-556.515646,0.00020821,2]
[368174141,1751049056782,-614.26075158,0.00020821,2]
[368174142,1751049056795,-1009.90924842,0.00020821,2]
[368174143,1751049056805,-556.515646,0.00020821,2]
[368174144,1751049056815,-460.0,0.00020821,2]
[368174145,1751049056824,-735.41,0.00020821,2]
[368174146,1751049056833,-460.0,0.00020821,2]
[368174147,1751049056844,-1413.54,0.00020821,2]
[368174148,1751049056854,-364.62510558,0.00020821,2]
[368174149,1751049056942,150.0,0.000189,2]
[368174150,1751049056977,-151.0,0.00020547,2]
[368174151,1751049056987,-95.37489442,0.00020821,2]
[368174152,1751049056997,-1163.37,0.00020821,2]
[368174153,1751049057007,-672.35,0.00020821,2]
[368174154,1751049057016,-1954.79,0.00020821,2]
[368174155,1751049057026,-621.02,0.00020821,2]
[368174156,1751049057036,-580.24,0.00020821,2]
[368174157,1751049057045,-612.49,0.00020821,2]
[368174158,1751049057055,-460.0,0.00020821,2]
[368174159,1751049057064,-266.94393791,0.00020821,2]
[368174160,1751049057073,-714.41,0.00020821,2]
[368174161,1751049057082,-630.53,0.00020821,2]
[368174162,1751049057095,-161.506392,0.00020821,2]
[368174163,1751049057104,-460.0,0.00020821,2]
[368174164,1751049057115,-473.41,0.00020821,2]
[368174165,1751049057124,-460.0,0.00020821,2]
[368174166,1751049057133,-460.0,0.00020821,2]
[368174167,1751049057142,-797.81,0.00020821,2]
[368174168,1751049057151,-849.88,0.00020821,2]
[368174169,1751049057161,-2242.44,0.00020821,2]
[368174170,1751049057170,-460.0,0.00020821,2]
[368174171,1751049057180,-964.61,0.00020821,2]
[368174172,1751049057189,-759.03,0.00020821,2]
[368174173,1751049057198,-559.46,0.00020821,2]
[368174174,1751049057207,-2175.15,0.00020821,2]
[368174175,1751049057217,-877.07,0.00020821,2]
[368174176,1751049057226,-3829.26,0.00020821,2]
[368174177,1751049057235,-460.0,0.00020821,2]
[368174178,1751049057244,-6238.11,0.00020821,2]
[368174179,1751049057254,-460.0,0.00020821,2]
[368174180,1751049057263,-460.0,0.00020821,2]
[368174181,1751049057273,-502.74,0.00020821,2]
[368174182,1751049057283,-1658.01,0.00020821,2]
[368174183,1751049057292,-151.0,0.00020821,2]
[368174184,1751049057302,-460.0,0.00020821,2]
[368174185,1751049057311,-151.0,0.00020821,2]
[368174186,1751049057320,-858.85,0.00020821,2]
[368174187,1751049057330,-534.66,0.00020821,2]
[368174188,1751049057342,-460.0,0.00020821,2]
[368174189,1751049057352,-873.1,0.00020821,2]
[368174190,1751049057362,-1065.72,0.00020821,2]
[368174191,1751049057371,-460.0,0.00020821,2]
[368174192,1751049057381,-4635.38,0.00020821,2]
[368174193,1751049057390,-707.85,0.00020821,2]
[368174194,1751049057399,-822.12,0.00020821,2]
[368174195,1751049057409,-3704.5,0.00020821,2]
[368174196,1751049057419,-1201.37,0.00020821,2]
[368174197,1751049057428,-722.87,0.00020821,2]
[368174198,1751049057437,-1142.58,0.00020821,2]
[368174199,1751049057446,-499.48,0.00020821,2]
[368174200,1751049057455,-460.0,0.00020821,2]
[368174201,1751049057465,-731.11,0.00020821,2]
[368174202,1751049057475,-3866.0,0.00020821,2]
[368174203,1751049057484,-460.0,0.00020821,2]
[368174204,1751049057493,-833.403518,0.00020821,2]
[368174205,1751049057503,-1339.53,0.00020821,2]
[368174206,1751049057512,-833.403518,0.00020821,2]
[368174207,1751049057522,-460.0,0.00020821,2]
[368174208,1751049057531,-151.0,0.00020821,2]
[368174209,1751049057541,-381.0,0.00020831,2]
[368174210,1751049057551,-478.84913896,0.00020844,2]
[368174211,1751049057560,-409.0,0.00020873,2]
[368174212,1751049057571,-1500.0,0.00020888,2]
[368174213,1751049057583,-234.89661,0.00020898,2]
[368174214,1751049057594,-234.89661,0.00020898,2]
[368174215,1751049057603,-242.108577,0.00020898,2]
[368174216,1751049057613,-242.108577,0.00020898,2]
[368174217,1751049057723,-151.0,0.00020898,2]
[368174218,1751049057736,-420.0,0.00020898,2]
[368174219,1751049057747,-151.0,0.000209,4]
[368174220,1751049057756,-151.0,0.000209,3]
[368174221,1751049057765,-7050.2838696,0.000209,4]
[368174222,1751049057775,-892.574,0.00020934,2]
[368174223,1751049057785,-1274.903624,0.00020941,4]
[368174224,1751049057794,-539.0,0.00020978,2]
[368174225,1751049057803,-201.17865,0.00020978,2]
[368174226,1751049057813,-201.17865,0.00020978,2]
[368174227,1751049057823,-8298.02495502,0.00020995,2]
[368174228,1751049057834,-720.0,0.00020999,2]
[368174229,1751049057845,-350.0,0.00021,2]
[368174230,1751049057855,-233.2,0.0002102,4]
[368174231,1751049057864,-550.86069672,0.00021021,2]
[368174232,1751049057873,-925.31093451,0.00021021,2]
[368174233,1751049057883,-511.5142067,0.00021021,2]
[368174234,1751049057893,-159.2394861,0.00021041,2]
[368174235,1751049057902,-5000.0,0.00021058,2]
[368174236,1751049057911,-151.0,0.00021068,2]
[368174237,1751049057920,-151.0,0.00021068,2]
[368174238,1751049057929,-151.0,0.00021068,2]
[368174239,1751049057939,-297.134412,0.00021068,2]
[368174240,1751049057948,-297.134412,0.00021068,2]
[368174241,1751049057958,-151.0,0.00021072,2]
[368174242,1751049057970,-298.818961,0.00021072,2]
[368174243,1751049057979,-576.205166,0.00021072,2]
[368174244,1751049057988,-576.205166,0.00021072,2]
[368174245,1751049057997,-251.347677,0.00021072,2]
[368174246,1751049058006,-251.347677,0.00021072,2]
[368174247,1751049058017,-151.0,0.00021095,2]
[368174248,1751049058026,-267.352675,0.00021095,2]
[368174249,1751049058035,-151.0,0.00021095,2]
[368174250,1751049058044,-151.0,0.00021095,2]
[368174251,1751049058053,-257.729469,0.00021095,2]
[368174252,1751049058062,-257.729469,0.00021095,2]
[368174253,1751049058071,-177.027065,0.00021095,2]
[368174254,1751049058080,-177.027065,0.00021095,2]
[368174255,1751049058091,-151.0,0.00021095,2]
[368174256,1751049058101,-371.026376,0.00021095,2]
[368174257,1751049058110,-250.133199,0.00021095,2]
[368174258,1751049058119,-460.0,0.00021095,2]
[368174259,1751049058128,-371.026376,0.00021095,2]
[368174260,1751049058138,-151.0,0.00021095,2]
[368174261,1751049058147,-151.0,0.00021095,2]
[368174262,1751049058156,-151.0,0.00021095,2]
[368174263,1751049058165,-151.0,0.00021095,2]
[368174264,1751049058174,-151.0,0.00021095,2]
[368174265,1751049058183,-460.0,0.00021095,2]
[368174266,1751049058192,-151.0,0.00021095,2]
[368174267,1751049058201,-460.0,0.00021095,2]
[368174268,1751049058210,-460.0,0.00021095,2]
[368174269,1751049058219,-151.0,0.00021095,2]
[368174270,1751049058230,-460.0,0.00021095,2]
[368174271,1751049058239,-368.31934,0.00021095,2]
[368174272,1751049058248,-368.31934,0.00021095,2]
[368174273,1751049058258,-2302.532705,0.00021095,2]
[368174274,1751049058267,-2302.532705,0.00021095,2]
[368174275,1751049058277,-460.0,0.00021095,2]
[368174276,1751049058287,-827.09,0.00021095,2]
[368174277,1751049058296,-192.55804,0.00021095,2]
[368174278,1751049058305,-251.164374,0.00021095,2]
[368174279,1751049058314,-151.0,0.00021095,2]
[368174280,1751049058323,-319.81666574,0.00021095,2]
[368174281,1751049058333,-151.0,0.00021095,2]
[368174282,1751049058345,-257.984342,0.00021095,2]
[368174283,1751049058355,-460.0,0.00021095,2]
[368174284,1751049058364,-460.0,0.00021095,2]
[368174285,1751049058373,-800.49,0.00021095,2]
[368174286,1751049058383,-631.32,0.00021095,2]
[368174287,1751049058393,-460.0,0.00021095,2]
[368174288,1751049058402,-151.0,0.00021095,2]
[368174289,1751049058411,-247.426802,0.00021095,2]
[368174290,1751049058421,-734.224282,0.00021095,2]
[368174291,1751049058430,-734.224282,0.00021095,2]
[368174292,1751049058440,-574.34,0.00021095,2]
[368174293,1751049058449,-460.0,0.00021095,2]
[368174294,1751049058459,-460.0,0.00021095,2]
[368174295,1751049058468,-460.0,0.00021095,2]
[368174296,1751049058478,-467.24816002,0.00021095,2]
[368174297,1751049058488,-1774.934017,0.00021095,2]
[368174298,1751049058497,-1774.934017,0.00021095,2]
[368174299,1751049058507,-151.0,0.00021095,2]
[368174300,1751049058516,-838.64,0.00021095,2]
[368174301,1751049058524,-460.0,0.00021095,2]
[368174302,1751049058533,-460.73,0.00021095,2]
[368174303,1751049058543,-460.0,0.00021095,2]
[368174304,1751049058552,-181.81860816,0.00021095,2]
[368174305,1751049058562,-151.0,0.00021095,2]
[368174306,1751049058572,-370.639966,0.00021095,2]
[368174307,1751049058583,-370.639966,0.00021095,2]
[368174308,1751049058594,-460.0,0.00021095,2]
[368174309,1751049058604,-4501.76,0.00021095,2]
[368174310,1751049058614,-5500.99,0.00021095,2]
[368174311,1751049058624,-1456.06,0.00021095,2]
[368174312,1751049058633,-477.87,0.00021095,2]
[368174313,1751049058642,-4785.04,0.00021095,2]
[368174314,1751049058653,-460.0,0.00021095,2]
[368174315,1751049058663,-2125.12,0.00021095,2]
[368174316,1751049058672,-460.0,0.00021095,2]
[368174317,1751049058681,-501.46,0.00021095,2]
[368174318,1751049058691,-797.49,0.00021095,2]
[368174319,1751049058701,-151.0,0.00021095,2]
[368174320,1751049058710,-498.673964,0.00021095,2]
[368174321,1751049058719,-498.673964,0.00021095,2]
[368174322,1751049058728,-151.0,0.00021095,2]
[368174323,1751049058737,-1935.73,0.00021095,2]
[368174324,1751049058746,-469.64,0.00021095,2]
[368174325,1751049058755,-2217.24,0.00021095,2]
[368174326,1751049058764,-460.0,0.00021095,2]
[368174327,1751049058774,-1317.79,0.00021095,2]
[368174328,1751049058783,-556.515646,0.00021095,2]
[368174329,1751049058792,-1624.17,0.00021095,2]
[368174330,1751049058802,-556.515646,0.00021095,2]
[368174331,1751049058811,-460.0,0.00021095,2]
[368174332,1751049058820,-735.41,0.00021095,2]
[368174333,1751049058831,-482.359798,0.00021095,2]
[368174334,1751049058841,-482.359798,0.00021095,2]
[368174335,1751049058851,-460.0,0.00021095,2]
[368174336,1751049058860,-1413.54,0.00021095,2]
[368174337,1751049058870,-460.0,0.00021095,2]
[368174338,1751049058879,-1163.37,0.00021095,2]
[368174339,1751049058888,-672.35,0.00021095,2]
[368174340,1751049058897,-1954.79,0.00021095,2]
[368174341,1751049058907,-621.02,0.00021095,2]
[368174342,1751049058916,-580.24,0.00021095,2]
[368174343,1751049058926,-612.49,0.00021095,2]
[368174344,1751049058935,-460.0,0.00021095,2]
[368174345,1751049058944,-630.53,0.00021095,2]
[368174346,1751049058954,-714.41,0.00021095,2]
[368174347,1751049058963,-460.0,0.00021095,2]
[368174348,1751049058973,-473.41,0.00021095,2]
[368174349,1751049058982,-460.0,0.00021095,2]
[368174350,1751049058991,-460.0,0.00021095,2]
[368174351,1751049059000,-797.81,0.00021095,2]
[368174352,1751049059010,-849.88,0.00021095,2]
[368174353,1751049059019,-2242.44,0.00021095,2]